fUST/lending_fUST_20240921
["ID","MTS","AMOUNT","RATE_DAILY","PERIOD"]
[338724346,1726899042572,-59053.2091954,0.00014286,2]
[338724348,1726899042582,-500.0,0.00014286,2]
[338724351,1726899042593,-500.0,0.00014286,2]
[338724353,1726899042605,-283.29887305,0.00014286,2]
[338724355,1726899042614,-500.0,0.00014286,2]
[338724357,1726899042623,-500.0,0.00014286,2]
[338724359,1726899042633,-500.0,0.00014286,2]
[338724361,1726899042642,-500.0,0.00014286,2]
[338724363,1726899042652,-500.0,0.00014286,2]
[338724365,1726899042662,-500.0,0.00014286,2]
[338724367,1726899042671,-500.0,0.00014286,2]
[338724369,1726899042680,-500.0,0.00014286,2]
[338724371,1726899042689,-500.0,0.00014286,2]
[338724373,1726899042698,-500.0,0.00014286,2]
[338724375,1726899042709,-500.0,0.00014286,2]
[338724377,1726899042718,-500.0,0.00014286,2]
[338724379,1726899042728,-500.0,0.00014286,2]
[338724381,1726899042738,-500.0,0.00014286,2]
[338724383,1726899042748,-500.0,0.00014286,2]
[338724385,1726899042758,-500.0,0.00014286,2]
[338724387,1726899042768,-500.0,0.00014286,2]
[338724390,1726899042778,-500.0,0.00014286,2]
[338724392,1726899042790,-500.0,0.00014286,2]
[338724394,1726899042801,-500.0,0.00014286,2]
[338724396,1726899042812,-500.0,0.00014286,2]
[338724399,1726899042823,-500.0,0.00014286,2]
[338724401,1726899042832,-500.0,0.00014286,2]
[338724403,1726899042842,-307.57057868,0.00014286,2]
[338724405,1726899042853,-500.0,0.00014286,2]
[338724407,1726899042863,-500.0,0.00014286,2]
[338724409,1726899042872,-500.0,0.00014286,2]
[338724411,1726899042881,-500.0,0.00014286,2]
[338724413,1726899042891,-500.0,0.00014286,2]
[338724415,1726899042899,-500.0,0.00014286,2]
[338724417,1726899042909,-500.0,0.00014286,2]
[338724419,1726899042918,-500.0,0.00014286,2]
[338724421,1726899042928,-500.0,0.00014286,2]
[338724424,1726899042938,-500.0,0.00014286,2]
[338724427,1726899042948,-500.0,0.00014286,2]
[338724429,1726899042958,-500.0,0.00014286,2]
[338724431,1726899042968,-500.0,0.00014286,2]
[338724433,1726899042977,-500.0,0.00014286,2]
[338724435,1726899042987,-500.0,0.00014286,2]
[338724438,1726899042997,-118106.418391,0.00014287,2]
[338724441,1726899043010,-43944.7961205,0.00014296,2]
[338724443,1726899043020,-157.60850622,0.00014297,2]
[338724445,1726899043030,-87889.5922409,0.00014297,2]
[338724447,1726899043040,-444.6142648,0.00014298,2]
[338724450,1726899043052,-500.0,0.00014298,2]
[338724452,1726899043062,-179.55963272,0.00014298,2]
[338724454,1726899043071,-500.0,0.00014298,2]
[338724456,1726899043081,-455.60442441,0.00014298,2]
[338724458,1726899043090,-416.53635998,0.00014298,2]
[338724460,1726899043099,-500.0,0.00014298,2]
[338724462,1726899043112,-500.0,0.00014298,2]
[338724464,1726899043122,-500.0,0.00014298,2]
[338724466,1726899043133,-500.0,0.00014298,2]
[338724468,1726899043142,-500.0,0.00014298,2]
[338724470,1726899043152,-639.86339475,0.00014298,2]
[338724472,1726899043161,-500.0,0.00014298,2]
[338724474,1726899043171,-500.0,0.00014298,2]
[338724476,1726899043180,-500.0,0.00014298,2]
[338724478,1726899043190,-500.0,0.00014298,2]
[338724480,1726899043201,-500.0,0.00014298,2]
[338724482,1726899043211,-500.0,0.00014298,2]
[338724484,1726899043221,-500.0,0.00014298,2]
[338724486,1726899043231,-500.0,0.00014298,2]
[338724488,1726899043242,-43944.7961205,0.00014299,2]
[338724490,1726899043252,-500.0,0.00014306,2]
[338724492,1726899043261,-500.0,0.00014306,2]
[338724494,1726899043270,-500.0,0.00014308,2]
[338724496,1726899043280,-500.0,0.00014308,2]
[338724498,1726899043289,-484.44,0.00014308,2]
[338724500,1726899043299,-558.89,0.00014314,2]
[338724502,1726899043308,-1234.07,0.00014314,2]
[338724505,1726899043318,-500.0,0.00014314,2]
[338724506,1726899043327,-500.0,0.00014314,2]
[338724508,1726899043336,-500.0,0.00014314,2]
[338724510,1726899043346,-737.13,0.00014314,2]
[338724512,1726899043361,-520.6,0.00014314,2]
[338724514,1726899043374,-500.0,0.00014314,2]
[338724516,1726899043384,-21944.39,0.00014314,2]
[338724518,1726899043393,-3122.43,0.00014314,2]
[338724520,1726899043403,-500.0,0.00014315,2]
[338724522,1726899043412,-500.0,0.00014315,2]
[338724524,1726899043422,-609.35,0.00014315,2]
[338724526,1726899043431,-500.0,0.00014315,2]
[338724529,1726899043441,-1170.4,0.00014315,2]
[338724531,1726899043450,-501.25568566,0.00014316,2]
[338724533,1726899043460,-500.0,0.00014316,2]
[338724535,1726899043470,-622.47,0.00014316,2]
[338724537,1726899043479,-500.0,0.00014316,2]
[338724539,1726899043489,-500.0,0.00014316,2]
[338724541,1726899043498,-500.0,0.00014316,2]
[338724543,1726899043508,-500.0,0.00014316,2]
[338724544,1726899043518,-500.0,0.00014316,2]
[338724546,1726899043528,-500.0,0.00014316,2]
[338724548,1726899043537,-500.0,0.00014316,2]
[338724551,1726899043549,-500.0,0.00014316,2]
[338724553,1726899043558,-500.0,0.00014316,2]
[338724555,1726899043568,-500.0,0.00014316,2]
[338724557,1726899043577,-502.31986415,0.00014316,2]
[338724559,1726899043587,-500.0,0.00014316,2]
[338724561,1726899043598,-500.0,0.00014316,2]
[338724563,1726899043610,-907.39,0.00014316,2]
[338724565,1726899043620,-541.98605961,0.00014316,2]
[338724567,1726899043630,-356.1344272,0.00014316,2]
[338724569,1726899043639,-500.0,0.00014316,2]
[338724570,1726899043649,-500.0,0.00014316,2]
[338724572,1726899043658,-503.97102658,0.00014316,2]
[338724575,1726899043668,-500.0,0.00014316,2]
[338724577,1726899043677,-514.8613394,0.00014316,2]
[338724594,1726899043820,-161.33371117,0.00014316,2]
[338724596,1726899043830,-500.0,0.00014316,2]
[338724598,1726899043840,-500.0,0.00014316,2]
[338724600,1726899043852,-527.04212277,0.00014316,2]
[338724602,1726899043862,-500.0,0.00014316,2]
[338724604,1726899043871,-500.0,0.00014316,2]
[338724606,1726899043882,-232.36,0.00014316,2]
[338724608,1726899043892,-331.40431596,0.00014316,2]
[338724610,1726899043902,-546.4504727,0.00014316,2]
[338724612,1726899043912,-500.0,0.00014316,2]
[338724614,1726899043922,-500.0,0.00014316,2]
[338724616,1726899043932,-500.0,0.00014316,2]
[338724618,1726899043942,-500.0,0.00014316,2]
[338724620,1726899043951,-500.0,0.00014316,2]
[338724622,1726899043961,-500.0,0.00014316,2]
[338724624,1726899043971,-579.1,0.00014316,2]
[338724626,1726899043980,-500.0,0.00014316,2]
[338724628,1726899043990,-500.0,0.00014316,2]
[338724630,1726899044000,-500.0,0.00014316,2]
[338724632,1726899044010,-500.0,0.00014316,2]
[338724634,1726899044020,-500.0,0.00014316,2]
[338724636,1726899044031,-470.22010164,0.00014316,2]
[338724639,1726899044042,-500.0,0.00014316,2]
[338724641,1726899044053,-500.0,0.00014316,2]
[338724643,1726899044062,-500.0,0.00014316,2]
[338724645,1726899044072,-396.52837721,0.00014316,2]
[338724647,1726899044082,-460.29,0.00014316,2]
[338724649,1726899044091,-500.0,0.00014316,2]
[338724650,1726899044102,-500.0,0.00014316,2]
[338724652,1726899044113,-393.48397774,0.00014316,2]
[338724655,1726899044125,-504.64,0.00014316,2]
[338724657,1726899044135,-500.0,0.00014316,2]
[338724659,1726899044147,-500.0,0.00014316,2]
[338724661,1726899044156,-500.0,0.00014316,2]
[338724663,1726899044166,-500.0,0.00014316,2]
[338724665,1726899044175,-500.0,0.00014316,2]
[338724667,1726899044185,-500.0,0.00014316,2]
[338724669,1726899044199,-510.40920777,0.00014316,2]
[338724671,1726899044210,-500.0,0.00014316,2]
[338724673,1726899044220,-500.0,0.00014316,2]
[338724675,1726899044229,-500.0,0.00014316,2]
[338724677,1726899044239,-500.0,0.00014316,2]
[338724679,1726899044249,-500.0,0.00014316,2]
[338724681,1726899044259,-500.0,0.00014316,2]
[338724683,1726899044269,-500.0,0.00014316,2]
[338724685,1726899044279,-2500.0,0.00014316,2]
[338724687,1726899044288,-500.0,0.00014316,2]
[338724689,1726899044298,-500.0,0.00014316,2]
[338724691,1726899044307,-500.0,0.00014316,2]
[338724693,1726899044317,-500.0,0.00014316,2]
[338724695,1726899044326,-500.0,0.00014316,2]
[338724697,1726899044335,-500.0,0.00014316,2]
[338724699,1726899044345,-511.59615971,0.00014316,2]
[338724701,1726899044356,-500.0,0.00014316,2]
[338724703,1726899044365,-500.0,0.00014316,2]
[338724705,1726899044375,-529.32581531,0.00014316,2]
[338724707,1726899044385,-500.0,0.00014316,2]
[338724709,1726899044394,-500.0,0.00014316,2]
[338724711,1726899044404,-805.8,0.00014316,2]
[338724713,1726899044414,-500.0,0.00014316,2]
[338724715,1726899044424,-401.51580415,0.00014316,2]
[338724718,1726899044434,-500.0,0.00014316,2]
[338724720,1726899044444,-500.0,0.00014316,2]
[338724722,1726899044455,-500.0,0.00014316,2]
[338724724,1726899044464,-500.0,0.00014316,2]
[338724726,1726899044474,-500.0,0.00014316,2]
[338724728,1726899044484,-384.95838713,0.00014316,2]
[338724730,1726899044493,-500.0,0.00014316,2]
[338724732,1726899044503,-500.0,0.00014316,2]
[338724734,1726899044513,-500.0,0.00014316,2]
[338724736,1726899044523,-500.0,0.00014316,2]
[338724738,1726899044533,-555.28750883,0.00014316,2]
[338724740,1726899044542,-500.0,0.00014316,2]
[338724742,1726899044552,-500.0,0.00014316,2]
[338724744,1726899044562,-501.4104444,0.00014316,2]
[338724746,1726899044571,-500.0,0.00014316,2]
[338724748,1726899044581,-500.0,0.00014316,2]
[338724750,1726899044591,-500.0,0.00014316,2]
[338724752,1726899044600,-500.0,0.00014316,2]
[338724754,1726899044610,-500.0,0.00014316,2]
[338724756,1726899044620,-500.0,0.00014316,2]
[338724758,1726899044629,-500.0,0.00014316,2]
[338724760,1726899044639,-500.0,0.00014316,2]
[338724762,1726899044648,-586.96358796,0.00014316,2]
[338724764,1726899044658,-500.0,0.00014316,2]
[338724766,1726899044667,-500.0,0.00014316,2]
[338724768,1726899044677,-500.0,0.00014316,2]
[338724770,1726899044686,-284.21798941,0.00014316,2]
[338724772,1726899044695,-500.0,0.00014316,2]
[338724774,1726899044705,-500.0,0.00014316,2]
[338724776,1726899044715,-500.0,0.00014316,2]
[338724778,1726899044724,-502.09002201,0.00014316,2]
[338724780,1726899044734,-531.75,0.00014316,2]
[338724782,1726899044743,-500.0,0.00014316,2]
[338724784,1726899044753,-500.0,0.00014316,2]
[338724786,1726899044762,-500.0,0.00014316,2]
[338724788,1726899044772,-883.19,0.00014316,2]
[338724790,1726899044782,-156.41,0.00014316,2]
[338724792,1726899044791,-228.2900456,0.00014316,2]
[338724794,1726899044802,-500.0,0.00014316,2]
[338724796,1726899044811,-511.66313967,0.00014318,2]
[338724798,1726899044821,-500.0,0.00014318,2]
[338724800,1726899044831,-500.0,0.00014318,2]
[338724802,1726899044840,-200.0,0.00014318,2]
[338724804,1726899044850,-565.13,0.00014318,2]
[338724806,1726899044859,-500.0,0.00014318,2]
[338724809,1726899044869,-500.0,0.00014319,2]
[338724811,1726899044879,-500.0,0.00014319,2]
[338724813,1726899044888,-500.0,0.00014319,2]
[338724815,1726899044898,-500.0,0.00014319,2]
[338724817,1726899044907,-500.0,0.00014319,2]
[338724819,1726899044916,-500.0,0.00014319,2]
[338724821,1726899044926,-771.82,0.00014319,2]
[338724822,1726899044935,-500.0,0.00014319,2]
[338724824,1726899044944,-500.0,0.00014319,2]
[338724827,1726899044954,-564.34,0.00014319,2]
[338724829,1726899044964,-550.59,0.00014319,2]
[338724831,1726899044974,-555.92,0.00014319,2]
[338724832,1726899044983,-500.0,0.00014319,2]
[338724834,1726899044992,-500.0,0.00014319,2]
[338724837,1726899045002,-500.0,0.00014319,2]
[338724839,1726899045012,-575.12,0.00014319,2]
[338724841,1726899045022,-500.0,0.00014319,2]
[338724843,1726899045031,-500.0,0.00014319,2]
[338724845,1726899045040,-500.0,0.00014319,2]
[338724847,1726899045050,-500.0,0.00014319,2]
[338724849,1726899045060,-500.0,0.00014319,2]
[338724850,1726899045069,-169.32233652,0.00014319,2]
[338724852,1726899045079,-534.44,0.00014319,2]
[338724854,1726899045088,-500.0,0.00014319,2]
[338724857,1726899045098,-500.0,0.00014319,2]
[338724859,1726899045109,-500.0,0.00014319,2]
[338724860,1726899045123,-500.0,0.00014319,2]
[338724863,1726899045133,-500.0,0.00014319,2]
[338724864,1726899045142,-500.0,0.00014319,2]
[338724866,1726899045151,-285.95029188,0.00014319,2]
[338724868,1726899045161,-505.18049513,0.00014319,2]
[338724870,1726899045170,-500.0,0.00014319,2]
[338724872,1726899045179,-500.0,0.00014319,2]
[338724874,1726899045188,-500.0,0.00014319,2]
[338724876,1726899045198,-500.0,0.00014319,2]
[338724878,1726899045207,-468.02,0.00014319,2]
[338724880,1726899045216,-503.54545512,0.00014319,2]
[338724882,1726899045225,-500.0,0.00014319,2]
[338724884,1726899045234,-500.0,0.00014319,2]
[338724886,1726899045244,-500.0,0.00014319,2]
[338724888,1726899045253,-500.0,0.0001433,2]
[338724890,1726899045263,-550.89237558,0.0001433,2]
[338724892,1726899045273,-500.0,0.0001433,2]
[338724894,1726899045282,-500.0,0.0001433,2]
[338724896,1726899045291,-500.2372452,0.0001433,2]
[338724898,1726899045301,-158.47209938,0.00014491,2]
[338724900,1726899045310,-558.89,0.00014588,2]
[338724902,1726899045319,-1234.07,0.00014588,2]
[338724904,1726899045329,-500.0,0.00014588,2]
[338724906,1726899045338,-500.0,0.00014588,2]
[338724907,1726899045349,-737.13,0.00014588,2]
[338724908,1726899045358,-500.0,0.00014588,2]
[338724909,1726899045368,-21944.39,0.00014588,2]
[338724910,1726899045377,-3122.43,0.00014588,2]
[338724911,1726899045387,-500.0,0.00014589,2]
[338724912,1726899045397,-609.35,0.00014589,2]
[338724913,1726899045406,-500.0,0.00014589,2]
[338724914,1726899045415,-1170.4,0.00014589,2]
[338724915,1726899045425,-500.0,0.0001459,2]
[338724916,1726899045434,-622.47,0.0001459,2]
[338724917,1726899045443,-500.0,0.0001459,2]
[338724918,1726899045453,-500.0,0.0001459,2]
[338724919,1726899045462,-500.0,0.0001459,2]
[338724920,1726899045471,-500.0,0.0001459,2]
[338724921,1726899045481,-500.0,0.0001459,2]
[338724922,1726899045490,-500.0,0.0001459,2]
[338724923,1726899045499,-500.0,0.0001459,2]
[338724924,1726899045509,-500.0,0.0001459,2]
[338724925,1726899045518,-500.0,0.0001459,2]
[338724926,1726899045527,-500.0,0.0001459,2]
[338724927,1726899045536,-907.39,0.0001459,2]
[338724928,1726899045546,-500.0,0.0001459,2]
[338724929,1726899045556,-500.0,0.0001459,2]
[338724930,1726899045565,-500.0,0.0001459,2]
[338724931,1726899045575,-500.0,0.0001459,2]
[338724932,1726899045584,-500.0,0.0001459,2]
[338724933,1726899045593,-500.0,0.0001459,2]
[338724934,1726899045603,-505.26834954,0.0001459,2]
[338724936,1726899045612,-500.0,0.0001459,2]
[338724937,1726899045621,-500.0,0.0001459,2]
[338724939,1726899045630,-500.0,0.0001459,2]
[338724941,1726899045639,-500.0,0.0001459,2]
[338724943,1726899045648,-500.0,0.0001459,2]
[338724945,1726899045660,-579.1,0.0001459,2]
[338724946,1726899045669,-500.0,0.0001459,2]
[338724948,1726899045678,-500.0,0.0001459,2]
[338724950,1726899045688,-500.0,0.0001459,2]
[338724952,1726899045697,-500.0,0.0001459,2]
[338724954,1726899045706,-500.0,0.0001459,2]
[338724956,1726899045717,-500.0,0.0001459,2]
[338724958,1726899045726,-500.0,0.0001459,2]
[338724960,1726899045735,-500.0,0.0001459,2]
[338724962,1726899045744,-500.0,0.0001459,2]
[338724964,1726899045753,-630.04088527,0.0001459,2]
[338724966,1726899045762,-504.64,0.0001459,2]
[338724968,1726899045771,-500.0,0.0001459,2]
[338724969,1726899045781,-500.0,0.0001459,2]
[338724971,1726899045791,-500.0,0.0001459,2]
[338724973,1726899045800,-500.0,0.0001459,2]
[338724975,1726899045809,-500.0,0.0001459,2]
[338724977,1726899045818,-500.0,0.0001459,2]
[338724979,1726899045829,-500.0,0.0001459,2]
[338724982,1726899045841,-2500.0,0.0001459,2]
[338724984,1726899045852,-500.0,0.0001459,2]
[338724986,1726899045861,-500.0,0.0001459,2]
[338724988,1726899045871,-500.0,0.0001459,2]
[338724990,1726899045880,-500.0,0.0001459,2]
[338724992,1726899045889,-500.0,0.0001459,2]
[338724994,1726899045898,-500.0,0.0001459,2]
[338724995,1726899045907,-500.0,0.0001459,2]
[338724997,1726899045917,-251.60187635,0.0001459,2]
[338724999,1726899045926,-805.8,0.0001459,2]
[338725001,1726899045935,-500.0,0.0001459,2]
[338725003,1726899045945,-500.0,0.0001459,2]
[338725005,1726899045954,-500.0,0.0001459,2]
[338725007,1726899045964,-500.0,0.0001459,2]
[338725009,1726899045974,-500.0,0.0001459,2]
[338725012,1726899045983,-500.0,0.0001459,2]
[338725014,1726899045992,-500.0,0.0001459,2]
[338725016,1726899046002,-500.0,0.0001459,2]
[338725018,1726899046011,-500.0,0.0001459,2]
[338725020,1726899046020,-500.0,0.0001459,2]
[338725022,1726899046030,-500.0,0.0001459,2]
[338725024,1726899046039,-500.0,0.0001459,2]
[338725026,1726899046049,-500.0,0.0001459,2]
[338725028,1726899046058,-500.0,0.0001459,2]
[338725030,1726899046068,-500.0,0.0001459,2]
[338725032,1726899046077,-500.0,0.0001459,2]
[338725034,1726899046086,-500.0,0.0001459,2]
[338725036,1726899046096,-502.33171383,0.0001459,2]
[338725038,1726899046108,-531.75,0.0001459,2]
[338725040,1726899046119,-500.0,0.0001459,2]
[338725042,1726899046128,-500.0,0.0001459,2]
[338725044,1726899046138,-500.0,0.0001459,2]
[338725046,1726899046149,-883.19,0.0001459,2]
[338725048,1726899046159,-500.0,0.0001459,2]
[338725050,1726899046169,-500.0,0.00014592,2]
[338725052,1726899046179,-500.0,0.00014592,2]
[338725054,1726899046189,-200.0,0.00014592,2]
[338725056,1726899046199,-565.13,0.00014592,2]
[338725058,1726899046209,-500.0,0.00014592,2]
[338725060,1726899046218,-500.0,0.00014593,2]
[338725066,1726899046262,-365.3222442,0.00014593,2]
[338725068,1726899046272,-500.0,0.00014593,2]
[338725070,1726899046282,-500.0,0.00014593,2]
[338725072,1726899046291,-362.64083535,0.00014593,2]
[338725074,1726899046302,-771.82,0.00014593,2]
[338725076,1726899046312,-541.539626,0.00014593,2]
[338725078,1726899046323,-500.0,0.00014593,2]
[338725080,1726899046333,-564.34,0.00014593,2]
[338725082,1726899046343,-550.59,0.00014593,2]
[338725084,1726899046353,-555.92,0.00014593,2]
[338725086,1726899046363,-500.0,0.00014593,2]
[338725088,1726899046373,-500.0,0.00014593,2]
[338725090,1726899046383,-500.0,0.00014593,2]
[338725092,1726899046393,-575.12,0.00014593,2]
[338725094,1726899046404,-500.0,0.00014593,2]
[338725096,1726899046414,-500.0,0.00014593,2]
[338725098,1726899046423,-500.0,0.00014593,2]
[338725101,1726899046435,-500.0,0.00014593,2]
[338725103,1726899046446,-500.0,0.00014593,2]
[338725105,1726899046456,-534.44,0.00014593,2]
[338725107,1726899046466,-500.0,0.00014593,2]
[338725109,1726899046475,-500.0,0.00014593,2]
[338725111,1726899046484,-500.0,0.00014593,2]
[338725113,1726899046495,-500.0,0.00014593,2]
[338725115,1726899046505,-500.0,0.00014593,2]
[338725117,1726899046516,-500.0,0.00014593,2]
[338725119,1726899046527,-513.24407418,0.00014593,2]
[338725121,1726899046536,-500.0,0.00014593,2]
[338725123,1726899046546,-500.0,0.00014593,2]
[338725125,1726899046555,-500.0,0.00014593,2]
[338725127,1726899046565,-500.0,0.00014593,2]
[338725129,1726899046574,-500.0,0.00014593,2]
[338725131,1726899046585,-306.659354,0.000147,2]
[338725133,1726899046594,-158.47209938,0.00014764,2]
[338725135,1726899046604,-558.89,0.00014862,2]
[338725137,1726899046613,-1234.07,0.00014862,2]
[338725139,1726899046622,-574.45795594,0.00014862,2]
[338725141,1726899046631,-500.0,0.00014862,2]
[338725143,1726899046640,-737.13,0.00014862,2]
[338725144,1726899046650,-312.87577202,0.00014862,2]
[338725146,1726899046659,-21944.39,0.00014862,2]
[338725149,1726899046669,-3122.43,0.00014862,2]
[338725151,1726899046678,-609.35,0.00014863,2]
[338725152,1726899046687,-500.0,0.00014863,2]
[338725154,1726899046697,-1170.4,0.00014863,2]
[338725156,1726899046706,-500.0,0.00014864,2]
[338725158,1726899046715,-622.47,0.00014864,2]
[338725160,1726899046724,-500.0,0.00014864,2]
[338725162,1726899046734,-500.0,0.00014864,2]
[338725164,1726899046744,-500.0,0.00014864,2]
[338725166,1726899046754,-500.0,0.00014864,2]
[338725168,1726899046763,-500.0,0.00014864,2]
[338725170,1726899046772,-500.0,0.00014864,2]
[338725172,1726899046781,-500.0,0.00014864,2]
[338725174,1726899046790,-500.0,0.00014864,2]
[338725176,1726899046799,-500.0,0.00014864,2]
[338725178,1726899046810,-500.0,0.00014864,2]
[338725180,1726899046819,-907.39,0.00014864,2]
[338725182,1726899046828,-500.0,0.00014864,2]
[338725184,1726899046838,-500.0,0.00014864,2]
[338725186,1726899046847,-500.0,0.00014864,2]
[338725188,1726899046857,-500.0,0.00014864,2]
[338725190,1726899046867,-500.0,0.00014864,2]
[338725192,1726899046877,-500.0,0.00014864,2]
[338725194,1726899046887,-295.02133353,0.00014864,2]
[338725196,1726899046896,-500.0,0.00014864,2]
[338725198,1726899046906,-500.0,0.00014864,2]
[338725199,1726899046916,-500.0,0.00014864,2]
[338725201,1726899046926,-500.0,0.00014864,2]
[338725203,1726899046935,-579.1,0.00014864,2]
[338725205,1726899046945,-500.0,0.00014864,2]
[338725207,1726899046955,-500.0,0.00014864,2]
[338725209,1726899046965,-500.0,0.00014864,2]
[338725211,1726899046975,-172.75274404,0.00014864,2]
[338725213,1726899046985,-500.0,0.00014864,2]
[338725215,1726899046994,-500.0,0.00014864,2]
[338725217,1726899047004,-500.0,0.00014864,2]
[338725219,1726899047013,-500.0,0.00014864,2]
[338725221,1726899047022,-500.0,0.00014864,2]
[338725223,1726899047031,-504.64,0.00014864,2]
[338725225,1726899047041,-500.0,0.00014864,2]
[338725227,1726899047049,-500.0,0.00014864,2]
[338725229,1726899047058,-500.0,0.00014864,2]
[338725231,1726899047068,-500.0,0.00014864,2]
[338725233,1726899047077,-500.0,0.00014864,2]
[338725235,1726899047087,-500.0,0.00014864,2]
[338725237,1726899047097,-2500.0,0.00014864,2]
[338725239,1726899047114,-500.0,0.00014864,2]
[338725241,1726899047124,-500.0,0.00014864,2]
[338725243,1726899047133,-501.9642815,0.00014864,2]
[338725245,1726899047143,-500.0,0.00014864,2]
[338725247,1726899047152,-500.0,0.00014864,2]
[338725249,1726899047161,-500.0,0.00014864,2]
[338725250,1726899047172,-805.8,0.00014864,2]
[338725252,1726899047181,-500.0,0.00014864,2]
[338725254,1726899047191,-503.80585493,0.00014864,2]
[338725256,1726899047201,-500.0,0.00014864,2]
[338725258,1726899047210,-500.0,0.00014864,2]
[338725260,1726899047220,-500.0,0.00014864,2]
[338725263,1726899047230,-500.0,0.00014864,2]
[338725264,1726899047239,-500.0,0.00014864,2]
[338725266,1726899047247,-500.0,0.00014864,2]
[338725268,1726899047257,-500.0,0.00014864,2]
[338725270,1726899047265,-599.90742919,0.00014864,2]
[338725272,1726899047275,-500.0,0.00014864,2]
[338725274,1726899047285,-250.33111339,0.00014864,2]
[338725276,1726899047294,-500.0,0.00014864,2]
[338725278,1726899047303,-500.0,0.00014864,2]
[338725280,1726899047312,-500.0,0.00014864,2]
[338725282,1726899047321,-260.82529819,0.00014864,2]
[338725284,1726899047330,-531.75,0.00014864,2]
[338725286,1726899047340,-500.0,0.00014864,2]
[338725288,1726899047349,-500.0,0.00014864,2]
[338725290,1726899047363,-500.0,0.00014864,2]
[338725292,1726899047373,-883.19,0.00014864,2]
[338725294,1726899047382,-500.0,0.00014864,2]
[338725296,1726899047393,-500.0,0.00014866,2]
[338725298,1726899047402,-500.0,0.00014866,2]
[338725300,1726899047411,-200.0,0.00014866,2]
[338725302,1726899047420,-565.13,0.00014866,2]
[338725304,1726899047430,-500.0,0.00014866,2]
[338725306,1726899047439,-475.076894,0.00014867,2]
[338725308,1726899047448,-500.0,0.00014867,2]
[338725310,1726899047457,-500.0,0.00014867,2]
[338725312,1726899047466,-500.0,0.00014867,2]
[338725314,1726899047475,-771.82,0.00014867,2]
[338725316,1726899047484,-500.0,0.00014867,2]
[338725318,1726899047493,-564.34,0.00014867,2]
[338725320,1726899047503,-550.59,0.00014867,2]
[338725322,1726899047511,-555.92,0.00014867,2]
[338725324,1726899047521,-410.62478205,0.00014867,2]
[338725326,1726899047531,-500.0,0.00014867,2]
[338725328,1726899047540,-500.0,0.00014867,2]
[338725330,1726899047549,-575.12,0.00014867,2]
[338725332,1726899047558,-500.0,0.00014867,2]
[338725334,1726899047567,-500.0,0.00014867,2]
[338725336,1726899047577,-629.81801732,0.00014867,2]
[338725338,1726899047587,-500.0,0.00014867,2]
[338725340,1726899047596,-500.0,0.00014867,2]
[338725342,1726899047608,-534.44,0.00014867,2]